bitfinex-derivatives/quotes_ETHF0:USTF0_20260128
["timestamp","ask_amount","ask_price","bid_price","bid_amount"]
[1769583104123,0.14659584,3017.3,3016.1,0.13771204]
[1769583104525,0.14659584,3017.5,3016.1,0.13771204]
[1769583105824,0.14659584,3017.3,3016.1,0.13771204]
[1769583112235,0.14659584,3017.5,3016.1,0.13771204]
[1769583112437,3.0599626,3017.4,3016.1,0.13771204]
[1769583112636,0.14659584,3017.5,3016.1,0.13771204]
[1769583112637,3.0599626,3017.3,3016.1,0.13771204]
[1769583112837,0.14659584,3017.5,3016.1,0.13771204]
[1769583113034,3.20655844,3017.4,3016.1,0.13771204]
[1769583113234,3.0599626,3017.3,3016.1,0.13771204]
[1769583113430,0.14659584,3017.4,3016.1,0.13771204]
[1769583113736,3.05985691,3017.3,3016.1,0.13771204]
[1769583113934,0.00394912,3017.6,3016.1,0.13771204]
[1769583114138,0.00394912,3017.6,3016.6,0.13771204]
[1769583115633,0.14631179,3017.6,3016.6,0.13771204]
[1769583116330,0.14631179,3017.6,3016.4,0.13388336]
[1769583117638,0.14236267,3017.5,3016.4,0.13388336]
[1769583119832,0.14236267,3017.5,3016.6,0.13388336]
[1769583120442,0.14236267,3017.5,3016.5,1.45340259]
[1769583121041,0.00394912,3017.6,3016.8,0.13388336]
[1769583121641,0.00394912,3017.6,3017.0,0.13388336]
[1769583121940,0.00394912,3017.6,3017.0,0.13740319]
[1769583127546,0.00394912,3017.6,3015.9,10.05899622]
[1769583127547,0.14236267,3017.3,3016.3,0.13388336]
[1769583127740,0.14236267,3017.3,3016.4,0.13388336]
[1769583128245,0.14236267,3017.3,3016.6,0.13388336]
[1769583128448,0.14236267,3017.3,3016.6,0.13732554]
[1769583129541,0.00394912,3017.6,3017.0,0.13388336]
[1769583129747,0.00394912,3017.6,3017.2,0.13388336]
[1769583130949,0.14236267,3017.9,3017.2,0.13388336]
[1769583131249,3.05139408,3017.8,3017.2,0.13388336]
[1769583131546,0.14236267,3018.2,3017.2,0.13388336]
[1769583131745,3.19415206,3018.1,3017.2,0.13388336]
[1769583131949,3.05178939,3018.0,3017.3,0.13388336]
[1769583132145,3.05178939,3017.9,3017.3,0.13388336]
[1769583132348,3.19415206,3017.8,3017.2,0.61909172]
[1769583132648,0.14236267,3017.7,3017.2,0.61909172]
[1769583138453,1.59576526,3018.0,3017.2,0.75297508]
[1769583138752,3.05268767,3017.9,3017.2,0.75297508]
[1769583138953,3.05268767,3017.8,3017.2,0.75297508]
[1769583139253,0.14236267,3018.0,3017.2,0.75297508]
[1769583139439,0.14236267,3017.8,3017.2,0.61909172]
[1769583141558,0.14576541,3018.1,3017.2,0.75297508]
[1769583141758,3.05366974,3018.0,3017.2,0.75297508]
[1769583141953,3.05366974,3017.9,3017.2,0.75297508]
[1769583142153,3.05366974,3017.8,3017.2,0.75297508]
[1769583142354,0.14576541,3018.1,3017.2,0.75297508]
[1769583142653,3.05416739,3018.0,3017.3,0.13388336]
[1769583142857,0.00340274,3018.1,3017.3,0.13388336]
[1769583143055,0.14236267,3018.6,3017.7,1.58728595]
[1769583143244,0.14236267,3018.5,3017.7,0.13388336]
[1769583143444,0.14236267,3018.4,3017.7,0.13388336]
[1769583143663,1.45340259,3018.7,3017.7,0.13388336]
[1769583143861,0.14236267,3018.6,3017.7,0.13388336]
[1769583144057,0.14236267,3018.4,3017.7,0.13388336]
[1769583144264,0.14236267,3018.4,3017.3,0.13388336]
[1769583144758,0.14236267,3018.4,3017.2,2.07249431]
[1769583144759,0.14268795,3017.9,3017.2,0.61909172]
[1769583145353,1.45340259,3018.4,3017.2,0.75736578]
[1769583145556,0.13286195,3018.5,3017.6,0.13827406]
[1769583147550,5.26622467,3019.4,3017.6,0.13827406]
[1769583147758,0.16552,3024.8,3017.2,2.79747018]
[1769583147759,9.73720745,3021.0,3018.8,0.13286195]
[1769583147955,0.75732588,3020.9,3019.1,0.13286195]
[1769583148160,0.16572,3021.1,3019.1,0.13286195]
[1769583148356,1.946,3020.9,3018.7,0.13827406]
[1769583148558,1.96268003,3020.5,3018.8,0.51850585]
[1769583148755,2.17837846,3020.6,3018.9,0.51850585]
[1769583149064,0.16576,3020.4,3019.1,0.13827406]
[1769583149256,0.32592733,3020.8,3019.3,0.13827406]
[1769583149568,0.32592733,3020.7,3019.1,0.13827406]
[1769583149863,0.13286195,3020.6,3019.1,0.13827406]
[1769583150264,0.13286195,3020.4,3019.1,0.13827406]
[1769583150467,0.13286195,3020.4,3018.8,0.13827406]
[1769583150660,0.13286195,3020.2,3018.8,0.13827406]
[1769583150967,0.13286195,3020.6,3018.8,0.13827406]
[1769583153864,0.13286195,3020.4,3018.8,0.13827406]
[1769583154265,0.13286195,3020.2,3018.8,0.13827406]
[1769583156467,0.45878928,3020.1,3018.7,0.00333296]
[1769583156871,0.13286195,3020.0,3018.7,0.00333296]
[1769583158258,0.13286195,3020.0,3018.7,0.14160702]
[1769583159359,0.13286195,3019.8,3018.7,0.00333296]
[1769583159766,0.13286195,3019.6,3018.7,0.00333296]
[1769583160666,0.13286195,3019.6,3018.3,0.13827406]
[1769583160871,0.13286195,3019.4,3018.3,0.13827406]
[1769583161566,0.13286195,3019.2,3017.5,0.13827406]
[1769583161776,0.13286195,3019.2,3017.5,0.14227167]
[1769583163872,0.13286195,3019.0,3017.5,0.14227167]
[1769583164677,0.13286195,3018.8,3017.5,0.14227167]
[1769583165970,0.13286195,3018.6,3017.5,0.14227167]
[1769583166170,0.13693019,3018.6,3017.5,0.14227167]
[1769583166475,0.32592733,3018.5,3017.5,0.14227167]
[1769583169981,0.45878928,3018.5,3017.5,0.14227167]
[1769583170474,0.32592733,3018.5,3017.5,0.14227167]
[1769583171671,0.45878928,3018.5,3017.5,0.14227167]
[1769583172890,0.13286195,3018.4,3017.5,0.14227167]
[1769583173186,0.13286195,3018.4,3017.5,0.00399761]
[1769583173492,0.13286195,3018.2,3017.3,0.13827406]
[1769583174279,0.13286195,3018.2,3017.3,0.14234278]
[1769583174989,0.32592733,3018.3,3017.3,0.14234278]
[1769583175294,0.00406824,3018.6,3017.3,0.14234278]
[1769583179794,2.21009081,3018.6,3017.3,0.14234278]
[1769583180087,0.00406824,3018.6,3017.3,0.14234278]
[1769583180489,2.20602257,3019.2,3017.3,0.14234278]
[1769583180695,2.20602257,3019.2,3017.5,2.37500633]
[1769583181583,2.20955816,3019.2,3017.5,2.37500633]
[1769583181783,2.20602257,3019.0,3017.5,2.37500633]
[1769583182893,0.00353559,3019.2,3017.5,2.54091633]
[1769583183992,2.20955816,3019.2,3017.5,2.54091633]
[1769583184192,2.20955816,3019.2,3017.6,2.37500633]
[1769583187600,2.20602257,3019.0,3017.6,2.37500633]
[1769583188598,2.20602257,3018.8,3017.3,2.37907505]
[1769583190204,2.20602257,3018.8,3017.3,7.29365035]
[1769583191207,3.02841079,3018.7,3017.3,7.29365035]
[1769583191410,2.20602257,3018.6,3017.3,7.29365035]
[1769583192708,2.20602257,3018.6,3017.3,2.37907505]
[1769583192909,2.20602257,3018.4,3017.3,2.37907505]
[1769583194107,2.20602257,3018.7,3017.3,2.37907505]
[1769583194304,2.20602257,3019.0,3017.3,2.37907505]
[1769583194502,2.20602257,3019.0,3017.5,2.37500633]
[1769583194503,3.04510993,3018.9,3017.5,2.37500633]
[1769583194705,2.20602257,3019.0,3017.5,2.37500633]
[1769583194903,3.04496014,3018.9,3017.6,2.37500633]
[1769583195104,2.20602257,3019.0,3017.6,2.37500633]
[1769583196218,0.00353559,3019.2,3017.6,2.54091633]
[1769583196511,2.20602257,3019.8,3018.1,2.37500633]
[1769583196711,3.04408631,3019.7,3018.3,2.37500633]
[1769583196900,2.20602257,3019.8,3018.3,2.37500633]
[1769583197107,3.04406003,3019.7,3018.3,2.37500633]
[1769583197405,2.20602257,3019.8,3018.3,2.37500633]
[1769583197601,2.20602257,3020.4,3018.9,2.37500633]
[1769583197814,2.20602257,3020.4,3018.9,7.28958163]
[1769583198006,2.20602257,3020.4,3019.0,2.37500633]
[1769583198208,2.21000594,3020.4,3019.0,2.37500633]
[1769583203913,2.21000594,3020.4,3018.6,2.37500633]
[1769583204415,2.37576594,3020.4,3018.6,2.37500633]
[1769583208321,3.59493113,3020.2,3018.6,2.37500633]
[1769583208622,3.59493113,3020.2,3018.1,3.64992706]
[1769583209616,3.59493113,3020.0,3018.1,3.64992706]
[1769583212717,3.76071113,3020.0,3018.1,3.64992706]
[1769583221330,2.98245578,3019.9,3018.1,3.64992706]
[1769583221629,3.76071113,3020.0,3018.1,3.64992706]
[1769583221833,3.59493113,3019.8,3018.1,3.64992706]
[1769583222632,3.59493113,3019.8,3018.1,8.73038236]
[1769583222831,3.59493113,3019.8,3018.2,3.64992706]
[1769583223534,3.59493113,3020.3,3018.4,3.64992706]
[1769583223735,2.9849382,3020.2,3018.6,3.64992706]
[1769583223930,3.59493113,3020.3,3018.7,3.64992706]
[1769583226341,3.59493113,3020.1,3018.7,3.64992706]
[1769583232136,3.59493113,3019.9,3018.7,3.64992706]
[1769583233543,3.59493113,3019.9,3019.1,1.4508713]
[1769583234140,3.59493113,3019.9,3018.9,5.10079836]
[1769583234544,3.46123544,3019.7,3018.6,3.64992706]
[1769583234746,3.46123544,3019.7,3018.7,1.4508713]
[1769583236054,3.46123544,3019.7,3018.7,4.93365849]
[1769583236550,3.46123544,3019.7,3018.8,3.48278719]
[1769583236755,3.46123544,3019.7,3018.9,4.93365849]
[1769583236947,3.46123544,3020.0,3019.1,4.93365849]
[1769583237252,2.99368557,3019.9,3019.1,4.93365849]
[1769583237454,2.99368557,3019.8,3019.1,4.93365849]
[1769583237653,3.46123544,3020.0,3019.1,4.93365849]
[1769583237855,2.99368464,3019.9,3019.1,4.93365849]
[1769583238057,2.99368464,3019.8,3019.1,4.93365849]
[1769583238351,3.46123544,3019.9,3019.1,4.93365849]
[1769583238552,2.99368432,3019.8,3019.1,4.93365849]
[1769583238755,3.46123544,3019.9,3019.1,4.93365849]
[1769583238955,2.99368162,3019.8,3019.1,4.93365849]
[1769583239256,3.46123544,3019.9,3019.1,4.93365849]
[1769583239450,2.993916,3019.8,3019.1,4.93365849]
[1769583239756,3.46123544,3019.9,3018.5,3.48278719]
[1769583240059,3.46123544,3019.7,3018.5,3.48278719]
[1769583243553,3.46123544,3020.0,3018.5,8.39736249]
[1769583243758,3.46123544,3020.0,3018.6,3.48278719]
[1769583243759,3.02085425,3019.9,3018.6,3.48278719]
[1769583243958,3.46123544,3020.0,3018.7,3.48278719]
[1769583246357,3.46123544,3019.8,3018.6,3.48278719]
[1769583248358,3.46123544,3019.6,3018.4,3.48278719]
[1769583259567,3.46123544,3019.4,3018.2,4.9345717]
[1769583259759,3.46123544,3019.2,3018.2,4.9345717]
[1769583264974,3.46123544,3019.2,3017.9,3.55012341]
[1769583265271,3.42750738,3019.0,3017.9,3.55012341]
[1769583265862,3.39678451,3019.1,3017.9,3.55012341]
[1769583265863,3.42750738,3018.8,3017.9,3.55012341]
[1769583268572,3.42750738,3018.8,3018.1,3.55012341]
[1769583268774,3.42750738,3018.7,3018.0,1.45178451]
[1769583269474,3.42750738,3018.7,3018.0,5.00190792]
[1769583270371,3.42750738,3018.6,3017.5,3.55012341]
[1769583270669,3.42750738,3018.4,3017.4,1.45178451]
[1769583270867,5.62550738,3018.4,3017.8,1.45178451]
[1769583272271,3.42750738,3018.3,3017.8,1.45178451]
[1769583272473,3.42750738,3018.3,3017.7,1.45178451]
[1769583274877,3.42750738,3018.3,3017.5,1.45178451]
[1769583275076,3.42750738,3018.2,3017.3,1.45585323]
[1769583275276,3.42750738,3018.2,3017.5,5.00190792]
[1769583275277,3.43005666,3018.2,3017.5,5.00190792]
[1769583276576,3.43005666,3018.2,3017.3,5.00597664]
[1769583277277,5.09242044,3019.2,3017.9,1.45178451]
[1769583277476,9.66890722,3019.1,3018.1,1.45178451]
[1769583277676,3.05390722,3019.0,3018.1,1.45178451]
[1769583277875,3.05390722,3018.9,3018.1,1.45178451]
[1769583278173,6.615,3019.1,3017.9,3.55012341]
[1769583278174,3.05390722,3018.8,3017.9,5.00190792]
[1769583278374,0.00367778,3018.8,3017.9,5.00190792]
[1769583278775,0.00367778,3018.8,3017.7,1.45178451]
[1769583279280,3.34670043,3018.7,3017.7,1.45178451]
[1769583279774,6.90070043,3018.6,3017.7,5.00190792]
[1769583279965,3.554,3018.6,3017.8,3.55012341]
[1769583283079,3.39193959,3018.5,3017.8,3.55012341]
[1769583283279,3.39193959,3018.5,3017.7,1.45178451]
[1769583283581,3.39193959,3018.5,3017.7,5.00190792]
[1769583285375,3.381027,3018.2,3017.3,3.55419213]
[1769583286486,0.00367778,3018.8,3018.1,5.00190792]
[1769583286680,3.42750738,3019.4,3018.6,3.55012341]
[1769583286884,3.05571843,3019.3,3018.6,3.55012341]
[1769583287186,3.05571843,3019.2,3018.6,3.55012341]
[1769583287480,44.22750738,3019.4,3018.6,3.55012341]
[1769583287685,3.05655646,3019.3,3018.6,3.55012341]
[1769583287982,3.05655646,3019.2,3018.1,3.55012341]
[1769583288184,3.05750688,3019.1,3018.1,3.55012341]
[1769583288386,3.42750738,3019.2,3018.1,3.55012341]
[1769583288683,3.05750199,3019.1,3018.1,3.55012341]
[1769583288884,3.42750738,3019.2,3018.1,3.55012341]
[1769583289186,3.05750626,3019.1,3018.1,3.55012341]
[1769583289487,3.42750738,3019.2,3018.1,3.55012341]
[1769583289679,3.05857123,3019.1,3018.1,3.55012341]
[1769583289985,3.42750738,3019.2,3018.1,3.55012341]
[1769583290281,3.05857549,3019.1,3018.1,3.55012341]
[1769583290587,3.42750738,3019.2,3018.1,3.55012341]
[1769583290789,3.05918716,3019.1,3018.1,3.55012341]
[1769583291086,3.42750738,3019.2,3018.1,3.55012341]
[1769583291288,3.42750738,3019.0,3018.1,3.55012341]
[1769583291685,3.42750738,3019.0,3017.4,3.55012341]
[1769583291987,3.42750738,3018.8,3017.4,3.55012341]
[1769583294289,3.0621406,3018.7,3017.4,3.55012341]
[1769583294592,1.946,3018.6,3017.4,3.55012341]
[1769583295791,3.33075815,3018.5,3017.4,3.55012341]
[1769583305898,6.43769415,3018.4,3017.4,3.55012341]
[1769583306093,3.36373177,3018.4,3017.4,3.55012341]
[1769583308195,3.36373177,3018.4,3017.3,0.00406872]
[1769583308393,3.36373177,3018.4,3017.3,3.18520019]
[1769583309396,1.946,3018.6,3017.3,3.18520019]
[1769583309397,3.45097831,3018.8,3017.3,3.18520019]
[1769583309599,3.246,3018.6,3017.3,3.18520019]
[1769583309902,3.07858249,3018.5,3017.3,3.18520019]
[1769583310196,3.07858249,3018.4,3017.3,3.18520019]
[1769583310403,3.246,3018.6,3017.3,3.18520019]
[1769583310603,3.07860785,3018.5,3017.3,3.18520019]
[1769583310803,3.07860785,3018.4,3017.3,3.18520019]
[1769583311006,3.246,3018.6,3017.3,3.18520019]
[1769583311203,3.07860642,3018.5,3017.3,3.18520019]
[1769583311501,3.07860642,3018.4,3017.3,3.18520019]
[1769583311709,3.246,3018.6,3017.3,3.18520019]
[1769583311898,3.07862833,3018.5,3017.3,3.18520019]
[1769583312099,3.07862833,3018.4,3017.3,3.18520019]
[1769583312306,3.246,3018.6,3017.3,3.18520019]
[1769583312602,3.07865531,3018.5,3017.3,3.18520019]
[1769583312805,3.07865531,3018.4,3017.3,3.18520019]
[1769583313001,6.95963083,3018.7,3017.3,3.18520019]
[1769583313200,3.07865531,3018.6,3017.3,3.18520019]
[1769583313401,3.07865531,3018.5,3017.3,3.18520019]
[1769583313703,3.07865531,3018.4,3017.3,3.18520019]
[1769583314003,6.95963083,3018.7,3017.3,3.18520019]
[1769583314203,3.07868767,3018.6,3017.3,3.18520019]
[1769583314412,3.07868767,3018.5,3017.3,3.18520019]
[1769583314604,3.07868767,3018.4,3017.3,3.18520019]
[1769583314807,3.36336902,3019.1,3017.3,3.18520019]
[1769583315010,13.35598828,3019.0,3017.6,3.18113147]
[1769583315208,3.07861926,3018.9,3017.6,3.18113147]
[1769583315510,3.07861926,3018.8,3017.6,3.18113147]
[1769583315707,3.07861926,3018.7,3017.6,3.18113147]
[1769583315902,3.07861926,3018.6,3017.6,3.18113147]
[1769583316210,3.07861926,3018.5,3017.6,3.18113147]
[1769583316410,3.597,3018.8,3017.6,3.18113147]
[1769583316612,3.07938712,3018.7,3017.6,3.18113147]
[1769583316908,3.07938712,3018.6,3017.6,3.18113147]
[1769583317105,3.07938712,3018.5,3017.6,3.18113147]
[1769583317305,3.597,3018.8,3017.6,3.18113147]
[1769583317506,3.07972219,3018.7,3017.6,3.18113147]
[1769583317707,3.07972219,3018.6,3017.6,3.18113147]
[1769583318013,3.07972219,3018.5,3017.6,3.18113147]
[1769583318307,3.597,3018.8,3017.6,3.18113147]
[1769583318507,3.08007615,3018.7,3017.6,3.18113147]
[1769583318708,3.08007615,3018.6,3017.6,3.18113147]
[1769583318914,3.36373177,3018.8,3017.6,3.18113147]
[1769583319210,3.0800219,3018.7,3017.6,3.18113147]
[1769583319405,3.0800219,3018.6,3017.6,3.18113147]
[1769583319603,3.36373177,3018.8,3017.6,3.18113147]
[1769583319799,3.08044706,3018.7,3017.6,3.18113147]
[1769583320003,3.08044706,3018.6,3017.6,3.18113147]
[1769583320204,3.36373177,3018.8,3017.6,3.18113147]
[1769583320404,3.08092775,3018.7,3017.6,3.18113147]
[1769583320609,3.08092775,3018.6,3017.6,3.18113147]
[1769583320807,3.36373177,3018.8,3017.6,3.18113147]
[1769583321014,3.0809304,3018.7,3017.6,3.18113147]
[1769583321315,3.0809304,3018.6,3017.6,3.18113147]
[1769583321511,3.36373177,3018.8,3017.6,3.18113147]
[1769583321717,3.08151916,3018.7,3017.6,3.18113147]
[1769583322015,3.08151916,3018.6,3017.6,3.18113147]
[1769583322316,3.36373177,3018.8,3017.6,3.18113147]
[1769583322515,6.44521716,3018.7,3017.6,3.18113147]
[1769583322812,3.08148539,3018.6,3017.6,3.18113147]
[1769583323014,3.36373177,3018.7,3017.6,3.18113147]
[1769583323216,3.08148539,3018.6,3017.6,3.18113147]
[1769583323513,3.36373177,3018.7,3017.6,3.18113147]
[1769583323717,3.08145152,3018.6,3017.6,3.18113147]
[1769583324013,3.36373177,3018.7,3017.6,3.18113147]
[1769583324213,3.08145152,3018.6,3017.6,3.18113147]
[1769583324414,3.36373177,3018.7,3017.6,3.18113147]
[1769583324612,3.08141746,3018.6,3017.6,3.18113147]
[1769583324814,3.36373177,3018.7,3017.6,3.18113147]
[1769583325016,3.08141746,3018.6,3017.6,3.18113147]
[1769583325312,3.36373177,3018.7,3017.6,3.18113147]
[1769583325513,3.08138374,3018.6,3017.6,3.18113147]
[1769583325706,3.36373177,3018.7,3017.6,3.18113147]
[1769583325909,3.08138372,3018.6,3017.6,3.18113147]
[1769583326108,3.36373177,3018.7,3017.6,3.18113147]
[1769583326409,3.08138372,3018.6,3017.6,3.18113147]
[1769583326610,3.36373177,3018.7,3017.6,3.18113147]
[1769583326915,3.0813338,3018.6,3017.6,3.18113147]
[1769583327105,3.36373177,3018.7,3017.6,3.18113147]
[1769583327306,6.70966302,3018.6,3017.6,3.18113147]
[1769583327507,3.62832983,3018.6,3017.6,3.18113147]
[1769583328019,3.596,3018.9,3017.6,3.18113147]
[1769583328312,6.70961248,3018.8,3017.6,3.18113147]
[1769583328519,3.08128265,3018.7,3017.6,3.18113147]
[1769583328815,3.08128265,3018.6,3017.6,3.18113147]
[1769583329014,3.62832983,3018.8,3017.6,3.18113147]
[1769583329217,3.08123438,3018.7,3017.6,3.18113147]
[1769583329421,3.08123438,3018.6,3017.6,3.18113147]
[1769583329711,3.62832983,3018.8,3017.6,3.18113147]
[1769583329916,3.08118718,3018.7,3017.6,3.18113147]
[1769583330117,3.08118718,3018.6,3017.6,3.18113147]
[1769583330320,3.62832983,3018.8,3017.6,3.18113147]
[1769583330620,3.0811908,3018.7,3017.6,3.18113147]
[1769583330819,3.0811908,3018.6,3017.6,3.18113147]
[1769583331022,3.62832983,3018.8,3017.6,3.18113147]
[1769583331321,3.62832983,3018.6,3017.6,3.18113147]
[1769583334619,3.599,3018.8,3018.0,3.60617325]
[1769583334824,3.08105751,3018.7,3018.0,3.60617325]
[1769583335122,3.08105751,3018.6,3018.0,3.60617325]
[1769583335321,3.599,3018.8,3018.0,3.60617325]
[1769583335522,3.08101276,3018.7,3018.0,3.60617325]
[1769583335825,3.6,3019.0,3018.0,3.60617325]
[1769583336126,3.08091088,3018.9,3018.0,3.60617325]
[1769583336326,3.08091088,3018.8,3018.0,3.60617325]
[1769583336525,3.08091088,3018.7,3018.0,3.60617325]
[1769583336725,7.22832983,3019.0,3018.0,3.60617325]
[1769583336931,3.08104394,3018.9,3018.0,3.60617325]
[1769583337228,3.08104394,3018.8,3018.0,3.60617325]
[1769583337522,3.08104394,3018.7,3018.0,3.60617325]
[1769583337723,7.22832983,3019.0,3018.0,3.60617325]
[1769583338023,3.08105277,3018.9,3018.0,3.60617325]
[1769583338222,3.08105277,3018.8,3018.0,3.60617325]
[1769583338423,3.08105277,3018.7,3018.0,3.60617325]
[1769583338629,7.22832983,3019.0,3018.0,3.60617325]
[1769583338830,3.08110602,3018.9,3018.0,3.60617325]
[1769583339024,3.08110602,3018.8,3018.0,3.60617325]
[1769583339220,3.08110602,3018.7,3018.0,3.60617325]
[1769583339421,7.22832983,3019.0,3018.0,3.60617325]
[1769583339720,3.08129272,3018.9,3018.0,3.60617325]
[1769583339919,3.08129272,3018.8,3018.0,3.60617325]
[1769583340119,3.08129272,3018.7,3018.0,3.60617325]
[1769583340316,7.22832983,3019.0,3018.0,3.60617325]
[1769583340521,3.08136849,3018.9,3018.0,3.60617325]
[1769583340720,3.08136849,3018.8,3018.0,3.60617325]
[1769583340929,3.08136849,3018.7,3018.0,3.60617325]
[1769583341130,7.22832983,3019.0,3018.0,3.60617325]
[1769583341324,3.08148487,3018.9,3018.0,3.60617325]
[1769583341525,3.08148487,3018.8,3018.0,3.60617325]
[1769583341726,3.08148487,3018.7,3018.0,3.60617325]
[1769583342030,7.24032983,3019.0,3018.0,3.60617325]
[1769583342229,3.08148353,3018.9,3018.0,3.60617325]
[1769583342427,3.08148353,3018.8,3018.0,3.60617325]
[1769583342630,7.24032983,3019.0,3018.0,3.60617325]
[1769583342631,3.08148353,3018.7,3018.0,3.60617325]
[1769583342831,7.24032983,3019.0,3018.0,3.60617325]
[1769583343131,3.08163256,3018.9,3018.0,3.60617325]
[1769583343330,7.24032983,3019.0,3018.0,3.60617325]
[1769583343331,3.08163256,3018.8,3018.0,3.60617325]
[1769583343532,3.08163256,3018.7,3018.0,3.60617325]
[1769583343732,7.24332983,3019.0,3018.0,3.60617325]
[1769583344030,3.08184241,3018.9,3018.0,3.60617325]
[1769583344229,3.616,3019.2,3018.1,3.60617325]
[1769583345033,7.24432983,3019.2,3018.1,3.60617325]
[1769583345928,3.62832983,3019.1,3018.1,3.60617325]
[1769583353850,1.45177066,3018.5,3017.6,3.60617325]
[1769583354738,3.62832983,3018.6,3017.6,3.60617325]
[1769583359749,3.50608758,3018.8,3017.6,3.60617325]
[1769583359949,3.03149253,3018.7,3017.8,3.59115959]
[1769583360140,3.03149253,3018.6,3017.8,3.59115959]
[1769583360340,3.50608758,3018.8,3017.8,3.59115959]
[1769583360541,6.53755214,3018.7,3017.8,3.59115959]
[1769583360742,3.03146456,3018.6,3017.8,3.59115959]
[1769583360942,3.50608758,3018.7,3017.8,3.59115959]
[1769583361144,3.03146323,3018.6,3017.8,3.59115959]
[1769583361344,3.50608758,3018.7,3017.8,3.59115959]
[1769583361642,3.03141655,3018.6,3017.8,3.59115959]
[1769583361843,3.50608758,3018.7,3017.8,3.59115959]
[1769583362143,3.014217,3018.6,3017.8,3.59115959]
[1769583362346,3.50608758,3018.7,3017.8,3.59115959]
[1769583362543,3.0141696,3018.6,3017.8,3.59115959]
[1769583362752,3.50608758,3018.7,3017.8,3.59115959]
[1769583362949,3.0141696,3018.6,3017.8,3.59115959]
[1769583363249,3.50608758,3018.7,3017.8,3.59115959]
[1769583363551,3.01412301,3018.6,3017.8,3.59115959]
[1769583363747,3.50608758,3018.7,3017.8,3.59115959]
[1769583363958,3.01412301,3018.6,3017.8,3.59115959]
[1769583364145,3.50608758,3018.7,3017.8,3.59115959]
[1769583364345,3.01408104,3018.6,3017.8,3.59115959]
[1769583364540,3.50608758,3018.7,3017.8,3.59115959]
[1769583364750,3.01408104,3018.6,3017.8,3.59115959]
[1769583364952,3.50608758,3018.7,3017.8,3.59115959]
[1769583365150,3.01408104,3018.6,3017.8,3.59115959]
[1769583365350,3.50608758,3018.7,3017.8,3.59115959]
[1769583365754,4.95785824,3018.9,3017.8,3.59115959]
[1769583366051,6.52012399,3018.8,3017.8,3.59115959]
[1769583366251,1.45177066,3018.9,3017.8,3.59115959]
[1769583366252,6.52012399,3018.7,3017.8,3.59115959]
[1769583366453,3.50608758,3018.7,3017.8,3.59115959]
[1769583366652,4.95785824,3018.7,3017.8,3.59115959]
[1769583366848,4.95785824,3018.7,3017.6,3.59115959]
[1769583366849,3.50608758,3018.6,3017.6,3.59115959]
[1769583369358,4.95785824,3018.5,3017.6,3.59115959]
[1769583370256,3.50608758,3018.4,3017.6,3.59115959]
[1769583374158,3.50608758,3018.6,3017.6,3.59115959]
[1769583374660,3.50608758,3018.8,3017.6,3.59115959]
[1769583374860,6.52361026,3018.7,3017.6,3.59115959]
[1769583375161,3.50608758,3018.7,3017.6,3.59115959]
[1769583375363,3.50608758,3018.6,3017.6,3.59115959]
[1769583376260,3.50608758,3018.4,3017.6,3.59115959]
[1769583376665,3.50608758,3017.6,3016.9,3.59115959]
[1769583377568,3.50608758,3018.2,3017.0,3.59115959]
[1769583377766,6.52336452,3018.1,3017.0,3.59115959]
[1769583378062,3.01727694,3018.0,3017.3,3.59115959]
[1769583378267,3.50608758,3018.1,3017.3,3.59115959]
[1769583378462,3.01981561,3018.0,3017.3,3.59115959]
[1769583378660,3.50608758,3018.2,3017.3,3.59115959]
[1769583378964,6.5259033,3018.1,3017.3,3.59115959]
[1769583379158,3.01981572,3018.0,3017.3,3.59115959]
[1769583379360,3.50608758,3018.1,3017.3,3.59115959]
[1769583379560,3.01911638,3018.0,3017.3,3.59115959]
[1769583379861,3.50608758,3018.1,3017.3,3.59115959]
[1769583380057,3.01911494,3018.0,3017.3,3.59115959]
[1769583380259,3.50608758,3018.1,3017.3,3.59115959]
[1769583380469,3.01863618,3018.0,3017.3,3.59115959]
[1769583380766,3.50608758,3018.1,3017.4,5.04293025]
[1769583380962,7.31696758,3018.3,3017.5,3.59115959]
[1769583381161,3.50608758,3018.5,3017.9,3.59115959]
[1769583381361,3.01828318,3018.4,3017.9,3.59115959]
[1769583381561,3.50608758,3018.5,3017.9,3.59115959]
[1769583381562,3.01828318,3018.3,3017.9,3.59115959]
[1769583381761,3.50608758,3018.5,3017.9,3.59115959]
[1769583381976,3.01827198,3018.4,3017.7,3.59115959]
[1769583382166,3.01827198,3018.3,3017.7,3.59115959]
[1769583382365,3.50608758,3018.5,3017.7,3.59115959]
[1769583382562,3.01857575,3018.4,3017.9,3.59115959]
[1769583382765,3.649,3018.6,3017.9,3.59115959]
[1769583382966,3.01845946,3018.5,3017.9,3.59115959]
[1769583383168,3.01845946,3018.4,3017.9,3.59115959]
[1769583383369,3.649,3018.6,3017.9,3.59115959]
[1769583383567,3.01899162,3018.5,3017.9,3.59115959]
[1769583383763,3.01899162,3018.4,3017.9,3.59115959]
[1769583383962,3.649,3018.6,3017.9,3.59115959]
[1769583384164,3.01899162,3018.5,3017.9,3.59115959]
[1769583384367,3.01899162,3018.4,3017.9,3.59115959]
[1769583384670,3.63503567,3018.5,3017.7,3.51746729]
[1769583385368,3.01896951,3018.4,3017.7,3.51746729]
[1769583385563,3.63503567,3018.5,3017.7,3.51746729]
[1769583385767,3.01897095,3018.4,3017.7,3.51746729]
[1769583385959,3.5565784,3018.4,3017.6,1.45177066]
[1769583386165,3.5565784,3018.4,3017.4,5.08816237]
[1769583386664,3.5565784,3018.4,3017.5,3.63639171]
[1769583389973,3.5565784,3018.1,3017.2,3.63639171]
[1769583391368,3.5565784,3018.4,3017.6,3.63639171]
[1769583391567,3.02564223,3018.3,3017.6,3.63639171]
[1769583391768,3.02564223,3018.2,3017.6,3.63639171]
[1769583391968,3.5565784,3018.4,3017.7,5.08816237]
[1769583392172,3.0275076,3018.3,3017.7,5.08816237]
[1769583392470,3.5565784,3018.4,3017.7,5.08816237]
[1769583392671,3.02755505,3018.3,3017.7,5.08816237]
[1769583392862,3.5565784,3018.4,3017.7,5.08816237]
[1769583393064,3.02755505,3018.3,3017.7,5.08816237]
[1769583393270,3.84587,3018.5,3017.7,5.08816237]
[1769583393470,3.02762985,3018.4,3017.8,3.63639171]
[1769583393670,3.02762985,3018.3,3017.8,3.63639171]
[1769583393876,3.84587,3018.5,3017.8,3.63639171]
[1769583394170,3.02762916,3018.4,3017.8,3.63639171]
[1769583394373,0.16587,3018.5,3017.8,3.63639171]
[1769583394374,3.02762916,3018.3,3017.8,3.63639171]
[1769583394574,7.2455784,3018.6,3017.8,3.63639171]
[1769583394775,3.02774053,3018.5,3017.8,3.63639171]
[1769583394974,3.02774053,3018.4,3017.8,3.63639171]
[1769583395174,3.02774053,3018.3,3017.8,3.63639171]
[1769583395376,7.2455784,3018.6,3017.8,3.63639171]
[1769583395574,3.02786994,3018.5,3017.8,3.63639171]
[1769583395777,3.5565784,3018.3,3016.9,3.63979166]
[1769583395971,3.5565784,3018.3,3017.2,3.63639171]
[1769583396374,3.5565784,3018.3,3017.4,3.63639171]
[1769583398281,3.03281313,3018.2,3017.2,3.63639171]
[1769583398476,3.5565784,3018.3,3017.2,3.63639171]